[Event "Titled Tuesday Blitz June 6 Early 2023"]
[White "Lopez Idarraga, Daniel Eduardo"]
[Black "Do Nascimento,Christian Almeida"]
[WhiteFideId "4405501"]
[BlackFideId "2143801"]
[WhiteElo "1980"]
[BlackElo "2078"]
[Result "1-0"]
[Round "3"]
[TimeControl "180+2"]
[Date "2023.06.06"]
[WhiteClock "0:00:16"]
[BlackClock "0:00:06"]
[Board "152"]

1. d4 {[%clk 0:03:00]}  Nf6 {[%clk 0:02:55]} 2. Bf4 {[%clk 0:03:00]}  e6 {[%clk 0:02:48]} 3. e3 {[%clk 0:03:00]}  b6 {[%clk 0:02:48]} 4. Nf3 {[%clk 0:02:59]}  Bb7 {[%clk 0:02:48]} 5. Nbd2 {[%clk 0:03:00]}  d6 {[%clk 0:02:43]} 6. Bd3 {[%clk 0:03:00]}  Nbd7 {[%clk 0:02:43]} 7. h3 {[%clk 0:02:59]}  Qe7 {[%clk 0:02:42]} 8. Bh2 {[%clk 0:02:58]}  g6 {[%clk 0:02:41]} 9. O-O {[%clk 0:02:57]}  Bg7 {[%clk 0:02:41]} 10. a4 {[%clk 0:02:58]}  O-O {[%clk 0:02:38]} 11. c3 {[%clk 0:02:58]}  a5 {[%clk 0:02:36]} 12. Nc4 {[%clk 0:02:48]}  Rfe8 {[%clk 0:02:24]} 13. b4 {[%clk 0:02:46]}  axb4 {[%clk 0:02:22]} 14. cxb4 {[%clk 0:02:45]}  e5 {[%clk 0:02:01]} 15. dxe5 {[%clk 0:02:40]}  Nxe5 {[%clk 0:01:59]} 16. Nfxe5 {[%clk 0:02:27]}  dxe5 {[%clk 0:01:59]} 17. Nxe5 {[%clk 0:02:14]}  Rad8 {[%clk 0:01:51]} 18. Rc1 {[%clk 0:01:36]}  Nd5 {[%clk 0:01:40]} 19. Nxf7 {[%clk 0:01:19]}  Qxf7 {[%clk 0:01:30]} 20. Qb3 {[%clk 0:01:18]}  Nf6 {[%clk 0:00:55]} 21. Qxf7+ {[%clk 0:01:08]}  Kxf7 {[%clk 0:00:56]} 22. Rxc7+ {[%clk 0:01:07]}  Re7 {[%clk 0:00:56]} 23. Rd1 {[%clk 0:01:02]}  Rxc7 {[%clk 0:00:51]} 24. Bxc7 {[%clk 0:01:00]}  Rd7 {[%clk 0:00:40]} 25. Bxb6 {[%clk 0:01:00]}  Be4 {[%clk 0:00:27]} 26. Bc4+ {[%clk 0:00:57]}  Bd5 {[%clk 0:00:27]} 27. Bf1 {[%clk 0:00:50]}  Bc6 {[%clk 0:00:23]} 28. Rxd7+ {[%clk 0:00:32]}  Nxd7 {[%clk 0:00:24]} 29. b5 {[%clk 0:00:31]}  Bxb5 {[%clk 0:00:13]} 30. Bxb5 {[%clk 0:00:28]}  Nxb6 {[%clk 0:00:13]} 31. a5 {[%clk 0:00:29]}  Nc8 {[%clk 0:00:14]} 32. f4 {[%clk 0:00:24]}  Bf8 {[%clk 0:00:13]} 33. Kf2 {[%clk 0:00:23]}  Bc5 {[%clk 0:00:12]} 34. Kf3 {[%clk 0:00:23]}  Kf6 {[%clk 0:00:12]} 35. e4 {[%clk 0:00:23]}  Na7 {[%clk 0:00:10]} 36. e5+ {[%clk 0:00:22]}  Ke7 {[%clk 0:00:08]} 37. Ba4 {[%clk 0:00:20]}  Ke6 {[%clk 0:00:09]} 38. Ke4 {[%clk 0:00:19]}  h6 {[%clk 0:00:09]} 39. g4 {[%clk 0:00:18]}  g5 {[%clk 0:00:09]} 40. f5+ {[%clk 0:00:18]}  Ke7 {[%clk 0:00:09]} 41. f6+ {[%clk 0:00:17]}  Kf8 {[%clk 0:00:08]} 42. Kf5 {[%clk 0:00:17]}  Be3 {[%clk 0:00:06]} 43. Ke6 {[%clk 0:00:17]}  Bd2 {[%clk 0:00:06]} 44. Kd7 {[%clk 0:00:15]}  Bxa5 {[%clk 0:00:06]} 45. e6 {[%clk 0:00:16]}  Bb4 {[%clk 0:00:06]} 46. e7+ {[%clk 0:00:16]} 1-0


[Site "https://www.chess.com"]

[Event "Titled Tuesday Blitz June 6 Early 2023"]
[White "Hoffmann, Asa"]
[Black "Sharan, Rao"]
[WhiteFideId "2001470"]
[BlackFideId "5073464"]
[WhiteElo "2117"]
[BlackElo "2149"]
[Result "0-1"]
[Round "3"]
[TimeControl "180+2"]
[Date "2023.06.06"]
[WhiteClock "0:02:11"]
[BlackClock "0:01:37"]
[Board "154"]

1. d4 {[%clk 0:02:54]}  Nf6 {[%clk 0:02:55]} 2. Bg5 {[%clk 0:02:53]}  Ne4 {[%clk 0:02:49]} 3. Bf4 {[%clk 0:02:53]}  d5 {[%clk 0:02:49]} 4. f3 {[%clk 0:02:53]}  Nf6 {[%clk 0:02:40]} 5. e4 {[%clk 0:02:52]}  e6 {[%clk 0:02:38]} 6. e5 {[%clk 0:02:51]}  Nfd7 {[%clk 0:02:38]} 7. Be3 {[%clk 0:02:51]}  c5 {[%clk 0:02:38]} 8. c3 {[%clk 0:02:51]}  Nc6 {[%clk 0:02:39]} 9. f4 {[%clk 0:02:51]}  Be7 {[%clk 0:02:38]} 10. Nf3 {[%clk 0:02:51]}  O-O {[%clk 0:02:38]} 11. Qd2 {[%clk 0:02:50]}  f6 {[%clk 0:02:38]} 12. Bd3 {[%clk 0:02:49]}  cxd4 {[%clk 0:02:37]} 13. cxd4 {[%clk 0:02:48]}  Qb6 {[%clk 0:02:29]} 14. Nc3 {[%clk 0:02:47]}  Na5 {[%clk 0:02:07]} 15. O-O {[%clk 0:02:44]}  Nc4 {[%clk 0:02:04]} 16. Bxc4 {[%clk 0:02:42]}  dxc4 {[%clk 0:02:05]} 17. Rac1 {[%clk 0:02:22]}  a6 {[%clk 0:01:48]} 18. Ne4 {[%clk 0:02:19]}  Qc6 {[%clk 0:01:43]} 19. b3 {[%clk 0:02:15]}  Qxe4 {[%clk 0:01:40]} 20. Rxc4 {[%clk 0:02:13]}  Nb6 {[%clk 0:01:38]} 21. Rc7 {[%clk 0:02:11]}  Nd5 {[%clk 0:01:37]} 0-1


[Site "https://www.chess.com"]

[Event "Titled Tuesday Blitz June 6 Early 2023"]
[White "Senft, Sean"]
[Black "Devaev, Alexander"]
[WhiteFideId "2044960"]
[BlackFideId "4169395"]
[WhiteElo "1989"]
[BlackElo "2172"]
[Result "0-1"]
[Round "3"]
[TimeControl "180+2"]
[Date "2023.06.06"]
[WhiteClock "0:00:20"]
[BlackClock "0:00:03"]
[Board "155"]

1. d4 {[%clk 0:02:54]}  Nf6 {[%clk 0:02:59]} 2. c4 {[%clk 0:02:55]}  e6 {[%clk 0:03:00]} 3. Nc3 {[%clk 0:02:55]}  c5 {[%clk 0:03:00]} 4. d5 {[%clk 0:02:55]}  d6 {[%clk 0:03:01]} 5. e4 {[%clk 0:02:55]}  e5 {[%clk 0:03:01]} 6. f4 {[%clk 0:02:56]}  Be7 {[%clk 0:03:02]} 7. fxe5 {[%clk 0:02:56]}  dxe5 {[%clk 0:03:02]} 8. Nf3 {[%clk 0:02:56]}  Nbd7 {[%clk 0:03:03]} 9. Be2 {[%clk 0:02:57]}  a6 {[%clk 0:03:02]} 10. a4 {[%clk 0:02:57]}  Bd6 {[%clk 0:02:56]} 11. O-O {[%clk 0:02:56]}  O-O {[%clk 0:02:56]} 12. Qe1 {[%clk 0:02:54]}  g6 {[%clk 0:02:40]} 13. Bg5 {[%clk 0:02:47]}  Be7 {[%clk 0:02:30]} 14. Rd1 {[%clk 0:02:43]}  Nh5 {[%clk 0:02:27]} 15. Bxe7 {[%clk 0:02:32]}  Qxe7 {[%clk 0:02:27]} 16. d6 {[%clk 0:02:29]}  Qd8 {[%clk 0:02:26]} 17. Nd5 {[%clk 0:02:21]}  Nhf6 {[%clk 0:02:08]} 18. Qg3 {[%clk 0:02:16]}  Nxd5 {[%clk 0:02:05]} 19. exd5 {[%clk 0:01:50]}  Qf6 {[%clk 0:01:49]} 20. Nd2 {[%clk 0:01:42]}  Qxd6 {[%clk 0:01:49]} 21. Ne4 {[%clk 0:01:41]}  Qb6 {[%clk 0:01:47]} 22. Qh4 {[%clk 0:01:32]}  Kg7 {[%clk 0:01:41]} 23. Rd3 {[%clk 0:01:13]}  Qd8 {[%clk 0:01:28]} 24. Qf2 {[%clk 0:01:04]}  b6 {[%clk 0:01:27]} 25. Rg3 {[%clk 0:00:45]}  f5 {[%clk 0:01:18]} 26. Ng5 {[%clk 0:00:44]}  Nf6 {[%clk 0:01:19]} 27. Ne6+ {[%clk 0:00:42]}  Bxe6 {[%clk 0:01:19]} 28. dxe6 {[%clk 0:00:43]}  Qd4 {[%clk 0:01:16]} 29. Qxd4 {[%clk 0:00:43]}  exd4 {[%clk 0:01:13]} 30. Rxf5 {[%clk 0:00:43]}  Rae8 {[%clk 0:01:00]} 31. Re5 {[%clk 0:00:42]}  a5 {[%clk 0:00:57]} 32. Bf3 {[%clk 0:00:41]}  Re7 {[%clk 0:00:43]} 33. Bc6 {[%clk 0:00:41]}  Rd8 {[%clk 0:00:41]} 34. Kf1 {[%clk 0:00:38]}  Ne8 {[%clk 0:00:17]} 35. Rf3 {[%clk 0:00:38]}  Nd6 {[%clk 0:00:17]} 36. b3 {[%clk 0:00:38]}  Rf8 {[%clk 0:00:16]} 37. Bd7 {[%clk 0:00:34]}  Rxf3+ {[%clk 0:00:15]} 38. gxf3 {[%clk 0:00:34]}  Kf6 {[%clk 0:00:15]} 39. Rd5 {[%clk 0:00:33]}  Nf5 {[%clk 0:00:12]} 40. Ke2 {[%clk 0:00:33]}  g5 {[%clk 0:00:08]} 41. Kd3 {[%clk 0:00:33]}  h5 {[%clk 0:00:08]} 42. Ke4 {[%clk 0:00:34]}  Ng7 {[%clk 0:00:07]} 43. Rd6 {[%clk 0:00:35]}  Nxe6 {[%clk 0:00:03]} 44. Kd5 {[%clk 0:00:20]}  d3 {[%clk 0:00:03]} 45. Bxe6 {[%clk 0:00:21]}  d2 {[%clk 0:00:03]} 46. Bf5+ {[%clk 0:00:21]}  Kxf5 {[%clk 0:00:03]} 47. Kc6 {[%clk 0:00:20]}  Re6 {[%clk 0:00:03]} 0-1


[Site "https://www.chess.com"]

[Event "Titled Tuesday Blitz June 6 Early 2023"]
[White "Baches Garcia, Guillermo"]
[Black "Baraeva, Irina"]
[WhiteFideId "2209764"]
[BlackFideId "24142565"]
[WhiteElo "2508"]
[BlackElo "2085"]
[Result "1-0"]
[Round "3"]
[TimeControl "180+2"]
[Date "2023.06.06"]
[WhiteClock "0:00:57"]
[BlackClock "0:00:13"]
[Board "156"]

1. e4 {[%clk 0:03:00]}  e6 {[%clk 0:02:59]} 2. d4 {[%clk 0:03:00]}  d5 {[%clk 0:02:59]} 3. exd5 {[%clk 0:03:01]}  exd5 {[%clk 0:02:59]} 4. Nf3 {[%clk 0:03:02]}  Bd6 {[%clk 0:02:59]} 5. c4 {[%clk 0:03:02]}  c6 {[%clk 0:02:51]} 6. Nc3 {[%clk 0:03:00]}  Ne7 {[%clk 0:02:51]} 7. Bd3 {[%clk 0:03:00]}  O-O {[%clk 0:02:47]} 8. O-O {[%clk 0:03:00]}  dxc4 {[%clk 0:02:47]} 9. Bxc4 {[%clk 0:03:01]}  Bg4 {[%clk 0:02:43]} 10. h3 {[%clk 0:02:52]}  Bh5 {[%clk 0:02:43]} 11. g4 {[%clk 0:02:52]}  Bg6 {[%clk 0:02:43]} 12. Ne5 {[%clk 0:02:52]}  Bxe5 {[%clk 0:02:33]} 13. dxe5 {[%clk 0:02:52]}  Qa5 {[%clk 0:02:34]} 14. Qe2 {[%clk 0:02:29]}  b5 {[%clk 0:01:49]} 15. Bb3 {[%clk 0:02:25]}  Rd8 {[%clk 0:01:48]} 16. Rd1 {[%clk 0:02:17]}  Rxd1+ {[%clk 0:01:36]} 17. Qxd1 {[%clk 0:02:17]}  b4 {[%clk 0:01:30]} 18. Ne2 {[%clk 0:01:56]}  Na6 {[%clk 0:01:30]} 19. Qd6 {[%clk 0:01:48]}  Qd8 {[%clk 0:01:14]} 20. Bg5 {[%clk 0:01:28]}  Qxd6 {[%clk 0:00:59]} 21. exd6 {[%clk 0:01:29]}  Nd5 {[%clk 0:00:58]} 22. Bxd5 {[%clk 0:01:13]}  cxd5 {[%clk 0:00:58]} 23. d7 {[%clk 0:01:07]}  f6 {[%clk 0:00:57]} 24. Rc1 {[%clk 0:01:07]}  Rd8 {[%clk 0:00:16]} 25. Rc8 {[%clk 0:01:02]}  Kf7 {[%clk 0:00:11]} 26. Rxd8 {[%clk 0:00:58]}  Ke7 {[%clk 0:00:12]} 27. Ra8 {[%clk 0:00:57]}  Kxd7 {[%clk 0:00:13]} 28. Rxa7+ {[%clk 0:00:57]} 1-0


[Site "https://www.chess.com"]

[Event "Titled Tuesday Blitz June 6 Early 2023"]
[White "Lacasa Diaz, Jose Antonio"]
[Black "Toczek, Grzegorz"]
[WhiteFideId "2203375"]
[BlackFideId "1106457"]
[WhiteElo "2338"]
[BlackElo "2093"]
[Result "1-0"]
[Round "3"]
[TimeControl "180+2"]
[Date "2023.06.06"]
[WhiteClock "0:01:33"]
[BlackClock "0:01:00"]
[Board "157"]

1. d4 {[%clk 0:03:00]}  e6 {[%clk 0:02:55]} 2. c4 {[%clk 0:03:00]}  Nf6 {[%clk 0:02:52]} 3. Nf3 {[%clk 0:02:58]}  b6 {[%clk 0:02:51]} 4. g3 {[%clk 0:02:57]}  Ba6 {[%clk 0:02:51]} 5. b3 {[%clk 0:02:56]}  Bb7 {[%clk 0:02:49]} 6. Bg2 {[%clk 0:02:56]}  Be7 {[%clk 0:02:49]} 7. O-O {[%clk 0:02:56]}  O-O {[%clk 0:02:49]} 8. Nc3 {[%clk 0:02:52]}  d5 {[%clk 0:02:46]} 9. Qc2 {[%clk 0:02:45]}  Nbd7 {[%clk 0:02:44]} 10. Rd1 {[%clk 0:02:44]}  c6 {[%clk 0:02:17]} 11. Bb2 {[%clk 0:02:43]}  Qc7 {[%clk 0:02:17]} 12. Rac1 {[%clk 0:02:43]}  Rac8 {[%clk 0:02:17]} 13. Ne5 {[%clk 0:02:31]}  Nxe5 {[%clk 0:02:12]} 14. dxe5 {[%clk 0:02:31]}  Nd7 {[%clk 0:02:13]} 15. f4 {[%clk 0:02:30]}  dxc4 {[%clk 0:02:05]} 16. bxc4 {[%clk 0:02:17]}  c5 {[%clk 0:02:01]} 17. Nb5 {[%clk 0:02:15]}  Qb8 {[%clk 0:01:59]} 18. Rxd7 {[%clk 0:02:13]}  Bxg2 {[%clk 0:01:54]} 19. Kxg2 {[%clk 0:02:12]}  a6 {[%clk 0:01:44]} 20. Nc3 {[%clk 0:02:09]}  Rfe8 {[%clk 0:01:36]} 21. Rcd1 {[%clk 0:02:05]}  b5 {[%clk 0:01:34]} 22. Qe4 {[%clk 0:01:53]}  Qb6 {[%clk 0:01:29]} 23. cxb5 {[%clk 0:01:48]}  axb5 {[%clk 0:01:26]} 24. Rb7 {[%clk 0:01:48]}  Qa5 {[%clk 0:01:25]} 25. Rxb5 {[%clk 0:01:45]}  Qa6 {[%clk 0:01:24]} 26. Qb7 {[%clk 0:01:42]}  Ra8 {[%clk 0:01:09]} 27. Qxa6 {[%clk 0:01:38]}  Rxa6 {[%clk 0:01:10]} 28. Rd7 {[%clk 0:01:36]}  g6 {[%clk 0:01:03]} 29. a4 {[%clk 0:01:35]}  Kf8 {[%clk 0:01:00]} 30. Ba3 {[%clk 0:01:33]} 1-0


[Site "https://www.chess.com"]

[Event "Titled Tuesday Blitz June 6 Early 2023"]
[White "Pavlidou, Ekaterini"]
[Black "Aggelis, Nikolaos"]
[WhiteFideId "4213262"]
[BlackFideId "4213220"]
[WhiteElo "2126"]
[BlackElo "2189"]
[Result "1/2-1/2"]
[Round "3"]
[TimeControl "180+2"]
[Date "2023.06.06"]
[WhiteClock "0:00:21"]
[BlackClock "0:00:09"]
[Board "158"]

1. d4 {[%clk 0:02:58]}  f5 {[%clk 0:02:59]} 2. e4 {[%clk 0:02:57]}  fxe4 {[%clk 0:02:51]} 3. Nc3 {[%clk 0:02:54]}  Nf6 {[%clk 0:02:46]} 4. Bg5 {[%clk 0:02:53]}  e6 {[%clk 0:02:39]} 5. Nxe4 {[%clk 0:02:51]}  Be7 {[%clk 0:02:39]} 6. Bxf6 {[%clk 0:02:50]}  Bxf6 {[%clk 0:02:38]} 7. c3 {[%clk 0:02:46]}  O-O {[%clk 0:02:38]} 8. Bd3 {[%clk 0:02:45]}  b6 {[%clk 0:01:58]} 9. Nf3 {[%clk 0:02:40]}  Bb7 {[%clk 0:01:57]} 10. Qe2 {[%clk 0:02:39]}  Nc6 {[%clk 0:01:56]} 11. h4 {[%clk 0:02:38]}  Ne7 {[%clk 0:01:52]} 12. Nfg5 {[%clk 0:02:36]}  h6 {[%clk 0:01:43]} 13. O-O-O {[%clk 0:02:23]}  Nf5 {[%clk 0:01:39]} 14. Nxf6+ {[%clk 0:02:09]}  Qxf6 {[%clk 0:01:38]} 15. Ne4 {[%clk 0:01:56]}  Bxe4 {[%clk 0:01:30]} 16. Bxe4 {[%clk 0:01:52]}  Rae8 {[%clk 0:01:30]} 17. h5 {[%clk 0:01:47]}  Nd6 {[%clk 0:01:26]} 18. Bg6 {[%clk 0:01:45]}  Re7 {[%clk 0:01:14]} 19. f3 {[%clk 0:01:35]}  a5 {[%clk 0:01:01]} 20. Kb1 {[%clk 0:01:34]}  Nf7 {[%clk 0:00:56]} 21. g3 {[%clk 0:01:25]}  e5 {[%clk 0:00:50]} 22. Rde1 {[%clk 0:01:23]}  d6 {[%clk 0:00:50]} 23. f4 {[%clk 0:01:16]}  e4 {[%clk 0:00:33]} 24. Qe3 {[%clk 0:01:10]}  d5 {[%clk 0:00:31]} 25. g4 {[%clk 0:01:09]}  Nd6 {[%clk 0:00:30]} 26. b3 {[%clk 0:01:03]}  Qxf4 {[%clk 0:00:27]} 27. Qh3 {[%clk 0:00:55]}  Qf3 {[%clk 0:00:20]} 28. Qh4 {[%clk 0:00:49]}  Qd3+ {[%clk 0:00:18]} 29. Kb2 {[%clk 0:00:48]}  Qd2+ {[%clk 0:00:19]} 30. Kb1 {[%clk 0:00:48]}  Re6 {[%clk 0:00:16]} 31. Ref1 {[%clk 0:00:43]}  Ref6 {[%clk 0:00:13]} 32. Rxf6 {[%clk 0:00:31]}  Rxf6 {[%clk 0:00:14]} 33. Bf5 {[%clk 0:00:31]}  Nb5 {[%clk 0:00:13]} 34. Rc1 {[%clk 0:00:26]}  Nxc3+ {[%clk 0:00:14]} 35. Rxc3 {[%clk 0:00:26]}  Qxc3 {[%clk 0:00:14]} 36. Qh2 {[%clk 0:00:26]}  Qd3+ {[%clk 0:00:14]} 37. Kb2 {[%clk 0:00:25]}  Qxd4+ {[%clk 0:00:15]} 38. Kb1 {[%clk 0:00:26]}  Qd3+ {[%clk 0:00:15]} 39. Kb2 {[%clk 0:00:26]}  Rc6 {[%clk 0:00:13]} 40. Qe5 {[%clk 0:00:24]}  Qd2+ {[%clk 0:00:12]} 41. Ka3 {[%clk 0:00:23]}  Qb4+ {[%clk 0:00:12]} 42. Kb2 {[%clk 0:00:23]}  Qd6 {[%clk 0:00:10]} 43. Qe8+ {[%clk 0:00:21]}  Qf8 {[%clk 0:00:11]} 44. Bh7+ {[%clk 0:00:19]}  Kxh7 {[%clk 0:00:10]} 45. Qxf8 {[%clk 0:00:20]}  Rf6 {[%clk 0:00:10]} 46. Qd8 {[%clk 0:00:18]}  c6 {[%clk 0:00:09]} 47. Qe7 {[%clk 0:00:17]}  b5 {[%clk 0:00:08]} 48. Kc3 {[%clk 0:00:17]}  Rf3+ {[%clk 0:00:05]} 49. Kd4 {[%clk 0:00:16]}  Rf6 {[%clk 0:00:05]} 50. Qe5 {[%clk 0:00:15]}  a4 {[%clk 0:00:04]} 51. b4 {[%clk 0:00:15]}  Kg8 {[%clk 0:00:04]} 52. Qe8+ {[%clk 0:00:15]}  Kh7 {[%clk 0:00:04]} 53. Qe7 {[%clk 0:00:15]}  Kh8 {[%clk 0:00:04]} 54. Qe5 {[%clk 0:00:15]}  Kh7 {[%clk 0:00:05]} 55. Qg3 {[%clk 0:00:16]}  Kg8 {[%clk 0:00:05]} 56. g5 {[%clk 0:00:16]}  hxg5 {[%clk 0:00:05]} 57. Qxg5 {[%clk 0:00:17]}  Kh7 {[%clk 0:00:05]} 58. Qe5 {[%clk 0:00:15]}  Kh6 {[%clk 0:00:05]} 59. a3 {[%clk 0:00:16]}  Kh7 {[%clk 0:00:05]} 60. Qe8 {[%clk 0:00:16]}  Rh6 {[%clk 0:00:04]} 61. Qf7 {[%clk 0:00:15]}  Rf6 {[%clk 0:00:04]} 62. Qd7 {[%clk 0:00:15]}  Rh6 {[%clk 0:00:04]} 63. Qf5+ {[%clk 0:00:16]}  Kh8 {[%clk 0:00:04]} 64. Ke5 {[%clk 0:00:16]}  Rf6 {[%clk 0:00:04]} 65. Qc8+ {[%clk 0:00:17]}  Kh7 {[%clk 0:00:04]} 66. Qh3 {[%clk 0:00:17]}  Kh8 {[%clk 0:00:03]} 67. h6 {[%clk 0:00:17]}  Rxh6 {[%clk 0:00:03]} 68. Qc8+ {[%clk 0:00:17]}  Kh7 {[%clk 0:00:04]} 69. Qf5+ {[%clk 0:00:17]}  Kh8 {[%clk 0:00:04]} 70. Qf8+ {[%clk 0:00:17]}  Kh7 {[%clk 0:00:05]} 71. Qf5+ {[%clk 0:00:17]}  Kh8 {[%clk 0:00:05]} 72. Kd4 {[%clk 0:00:18]}  Rf6 {[%clk 0:00:05]} 73. Qh5+ {[%clk 0:00:18]}  Kg8 {[%clk 0:00:05]} 74. Qe8+ {[%clk 0:00:19]}  Kh7 {[%clk 0:00:06]} 75. Qh5+ {[%clk 0:00:19]}  Kg8 {[%clk 0:00:07]} 76. Qe5 {[%clk 0:00:19]}  Kh7 {[%clk 0:00:07]} 77. Qh2+ {[%clk 0:00:19]}  Kg8 {[%clk 0:00:08]} 78. Qb8+ {[%clk 0:00:20]}  Kh7 {[%clk 0:00:08]} 79. Qh2+ {[%clk 0:00:20]}  Kg8 {[%clk 0:00:09]} 80. Qb8+ {[%clk 0:00:20]}  Kh7 {[%clk 0:00:09]} 81. Qh2+ {[%clk 0:00:21]} 1/2-1/2


[Site "https://www.chess.com"]

[Event "Titled Tuesday Blitz June 6 Early 2023"]
[White "Srebrnic, Marko"]
[Black "Yanayt, Eugene"]
[WhiteFideId "14603616"]
[BlackFideId "2020165"]
[WhiteElo "2341"]
[BlackElo "2083"]
[Result "1-0"]
[Round "3"]
[TimeControl "180+2"]
[Date "2023.06.06"]
[WhiteClock "0:00:14"]
[BlackClock "0:00:39"]
[Board "159"]

1. e4 {[%clk 0:01:23]}  c5 {[%clk 0:02:58]} 2. Nf3 {[%clk 0:01:23]}  d6 {[%clk 0:02:58]} 3. g3 {[%clk 0:01:22]}  Nc6 {[%clk 0:02:45]} 4. Bg2 {[%clk 0:01:21]}  Nf6 {[%clk 0:02:43]} 5. Qe2 {[%clk 0:01:20]}  Bg4 {[%clk 0:02:40]} 6. c3 {[%clk 0:01:16]}  Ne5 {[%clk 0:02:38]} 7. h3 {[%clk 0:01:14]}  Bxf3 {[%clk 0:02:35]} 8. Bxf3 {[%clk 0:01:13]}  c4 {[%clk 0:02:36]} 9. O-O {[%clk 0:01:12]}  Qc8 {[%clk 0:02:34]} 10. Bg2 {[%clk 0:01:11]}  h6 {[%clk 0:02:32]} 11. Na3 {[%clk 0:01:08]}  Nd3 {[%clk 0:02:31]} 12. b3 {[%clk 0:01:07]}  Nxc1 {[%clk 0:02:30]} 13. Raxc1 {[%clk 0:01:06]}  cxb3 {[%clk 0:02:30]} 14. axb3 {[%clk 0:01:07]}  g6 {[%clk 0:02:26]} 15. e5 {[%clk 0:01:02]}  dxe5 {[%clk 0:02:24]} 16. Qxe5 {[%clk 0:01:03]}  Bg7 {[%clk 0:02:07]} 17. Qb5+ {[%clk 0:01:00]}  Qd7 {[%clk 0:02:02]} 18. Qxd7+ {[%clk 0:00:59]}  Kxd7 {[%clk 0:02:01]} 19. d4 {[%clk 0:00:49]}  Rab8 {[%clk 0:01:58]} 20. c4 {[%clk 0:00:48]}  a6 {[%clk 0:01:54]} 21. Rfe1 {[%clk 0:00:44]}  Rhc8 {[%clk 0:01:53]} 22. d5 {[%clk 0:00:41]}  Ne8 {[%clk 0:01:49]} 23. c5 {[%clk 0:00:34]}  Bb2 {[%clk 0:01:47]} 24. c6+ {[%clk 0:00:34]}  Kd8 {[%clk 0:01:42]} 25. Nc4 {[%clk 0:00:19]}  Bxc1 {[%clk 0:01:41]} 26. Rxc1 {[%clk 0:00:19]}  bxc6 {[%clk 0:01:40]} 27. dxc6 {[%clk 0:00:20]}  Rxb3 {[%clk 0:01:40]} 28. Rd1+ {[%clk 0:00:19]}  Nd6 {[%clk 0:01:36]} 29. Nxd6 {[%clk 0:00:17]}  exd6 {[%clk 0:01:37]} 30. Rxd6+ {[%clk 0:00:18]}  Ke8 {[%clk 0:01:36]} 31. Rd7 {[%clk 0:00:16]}  Ra8 {[%clk 0:01:20]} 32. Bd5 {[%clk 0:00:15]}  Rb1+ {[%clk 0:01:03]} 33. Kg2 {[%clk 0:00:15]}  f5 {[%clk 0:01:00]} 34. Bf7+ {[%clk 0:00:16]}  Kf8 {[%clk 0:01:00]} 35. Bxg6 {[%clk 0:00:17]}  Rbb8 {[%clk 0:00:44]} 36. Bxf5 {[%clk 0:00:15]}  Rc8 {[%clk 0:00:42]} 37. c7 {[%clk 0:00:15]}  Ke8 {[%clk 0:00:38]} 38. Rh7 {[%clk 0:00:15]}  a5 {[%clk 0:00:36]} 39. Rh8+ {[%clk 0:00:12]}  Ke7 {[%clk 0:00:36]} 40. Rxc8 {[%clk 0:00:12]}  Rxc8 {[%clk 0:00:36]} 41. Bxc8 {[%clk 0:00:13]}  Kd6 {[%clk 0:00:37]} 42. Be6 {[%clk 0:00:11]}  Kxc7 {[%clk 0:00:37]} 43. Ba2 {[%clk 0:00:11]}  Kd6 {[%clk 0:00:37]} 44. f4 {[%clk 0:00:11]}  Kc5 {[%clk 0:00:38]} 45. Kf3 {[%clk 0:00:12]}  Kb4 {[%clk 0:00:39]} 46. g4 {[%clk 0:00:12]}  Ka3 {[%clk 0:00:39]} 47. Be6 {[%clk 0:00:12]}  Kb4 {[%clk 0:00:40]} 48. g5 {[%clk 0:00:13]}  hxg5 {[%clk 0:00:39]} 49. fxg5 {[%clk 0:00:14]} 1-0


[Site "https://www.chess.com"]

[Event "Titled Tuesday Blitz June 6 Early 2023"]
[White "Chuemsakul, Sarocha"]
[Black "Bas Mas, Jose Joaquin"]
[WhiteFideId "6203710"]
[BlackFideId "22219064"]
[WhiteElo "1686"]
[BlackElo "2212"]
[Result "0-1"]
[Round "3"]
[TimeControl "180+2"]
[Date "2023.06.06"]
[WhiteClock "0:00:09"]
[BlackClock "0:01:02"]
[Board "160"]

1. d4 {[%clk 0:03:00]}  d5 {[%clk 0:02:59]} 2. c4 {[%clk 0:03:01]}  e6 {[%clk 0:02:59]} 3. cxd5 {[%clk 0:03:01]}  exd5 {[%clk 0:02:59]} 4. Nc3 {[%clk 0:03:02]}  Nf6 {[%clk 0:02:59]} 5. Nf3 {[%clk 0:03:03]}  Nbd7 {[%clk 0:02:59]} 6. Bf4 {[%clk 0:03:03]}  Nb6 {[%clk 0:02:56]} 7. e3 {[%clk 0:03:00]}  c6 {[%clk 0:02:56]} 8. Bd3 {[%clk 0:03:00]}  Bg4 {[%clk 0:02:56]} 9. h3 {[%clk 0:03:00]}  Bh5 {[%clk 0:02:56]} 10. O-O {[%clk 0:02:46]}  Bd6 {[%clk 0:02:55]} 11. Bxd6 {[%clk 0:02:44]}  Qxd6 {[%clk 0:02:55]} 12. Be2 {[%clk 0:02:44]}  O-O {[%clk 0:02:54]} 13. Ne5 {[%clk 0:02:45]}  Bxe2 {[%clk 0:02:54]} 14. Qxe2 {[%clk 0:02:46]}  a5 {[%clk 0:02:53]} 15. Rac1 {[%clk 0:02:35]}  Rfe8 {[%clk 0:02:52]} 16. Qc2 {[%clk 0:02:35]}  a4 {[%clk 0:02:41]} 17. Rfd1 {[%clk 0:02:24]}  Nfd7 {[%clk 0:02:36]} 18. Nxd7 {[%clk 0:02:24]}  Qxd7 {[%clk 0:02:35]} 19. b3 {[%clk 0:02:20]}  a3 {[%clk 0:02:31]} 20. Ne2 {[%clk 0:02:18]}  Nc8 {[%clk 0:02:23]} 21. Nf4 {[%clk 0:02:16]}  Nd6 {[%clk 0:02:23]} 22. Nd3 {[%clk 0:02:17]}  Ne4 {[%clk 0:02:19]} 23. Nc5 {[%clk 0:02:17]}  Nxc5 {[%clk 0:02:17]} 24. Qxc5 {[%clk 0:02:18]}  Re6 {[%clk 0:02:16]} 25. b4 {[%clk 0:02:15]}  b5 {[%clk 0:02:10]} 26. Rd3 {[%clk 0:02:11]}  h5 {[%clk 0:02:10]} 27. Qc2 {[%clk 0:02:07]}  Rg6 {[%clk 0:02:08]} 28. Kh1 {[%clk 0:02:03]}  Qe7 {[%clk 0:02:05]} 29. Rb3 {[%clk 0:01:57]}  Ra4 {[%clk 0:02:03]} 30. Qd2 {[%clk 0:01:49]}  Qe4 {[%clk 0:01:58]} 31. Rg1 {[%clk 0:01:46]}  h4 {[%clk 0:01:51]} 32. Qd1 {[%clk 0:01:40]}  f5 {[%clk 0:01:44]} 33. Qf3 {[%clk 0:01:35]}  Kh7 {[%clk 0:01:35]} 34. Qxe4 {[%clk 0:01:29]}  fxe4 {[%clk 0:01:36]} 35. Rc1 {[%clk 0:01:29]}  Ra8 {[%clk 0:01:29]} 36. Rcc3 {[%clk 0:01:23]}  Rf8 {[%clk 0:01:26]} 37. Rc2 {[%clk 0:01:19]}  Rf5 {[%clk 0:01:22]} 38. Rxa3 {[%clk 0:01:07]}  Rfg5 {[%clk 0:01:22]} 39. f4 {[%clk 0:00:32]}  exf3 {[%clk 0:01:22]} 40. gxf3 {[%clk 0:00:27]}  Rg3 {[%clk 0:01:23]} 41. Kh2 {[%clk 0:00:17]}  Rxf3 {[%clk 0:01:21]} 42. Rac3 {[%clk 0:00:17]}  Rgg3 {[%clk 0:01:18]} 43. Rxc6 {[%clk 0:00:17]}  Rxh3+ {[%clk 0:01:19]} 44. Kg2 {[%clk 0:00:17]}  Rhg3+ {[%clk 0:01:19]} 45. Kh2 {[%clk 0:00:17]}  Rxe3 {[%clk 0:01:20]} 46. R6c5 {[%clk 0:00:17]}  Rh3+ {[%clk 0:01:10]} 47. Kg2 {[%clk 0:00:17]}  Reg3+ {[%clk 0:01:10]} 48. Kf2 {[%clk 0:00:18]}  Rh2+ {[%clk 0:01:10]} 49. Kf1 {[%clk 0:00:18]}  Rxc2 {[%clk 0:01:06]} 50. Rxc2 {[%clk 0:00:18]}  Rd3 {[%clk 0:01:06]} 51. Rc5 {[%clk 0:00:15]}  Rxd4 {[%clk 0:01:06]} 52. Rxb5 {[%clk 0:00:16]}  g5 {[%clk 0:01:06]} 53. a4 {[%clk 0:00:15]}  g4 {[%clk 0:01:06]} 54. a5 {[%clk 0:00:16]}  h3 {[%clk 0:01:04]} 55. Kf2 {[%clk 0:00:10]}  Rd2+ {[%clk 0:01:03]} 56. Kg3 {[%clk 0:00:11]}  h2 {[%clk 0:01:02]} 57. Rb7+ {[%clk 0:00:09]}  Kg6 {[%clk 0:01:02]} 0-1


[Site "https://www.chess.com"]